Workbook

Sheet 汇总表
B1: 2023年检验化验计划及预算
A2: 序号 | B2: 项目 | C2: 费用（元） | D2: 备注
A3: 1 | B3: 耗材 | C3: 38744
A4: 2 | B4: 药剂 | C4: 26651
A5: 3 | B5: 仪器校准 | C5: 6000
A6: 4 | B6: 废液处置 | C6: 20000 | D6: 包括化验室检测产生的废液以及进出水在线仪表产生的废液
A7: 5 | B7: 进出水在线仪表运维 | C7: 125000
A8: 6 | B8: 污泥年度例行监测 | C8: 12000
A9: 7 | B9: 排污许可证因子检测 | C9: 40000
B10: 合计（元） | C10: =SUM(C3:C9) -> 268395

Sheet 耗材申购计划及预算
A1: 2023年化验室玻璃器皿申购计划及预算
A2: 序号 | B2: 物资名称 | C2: 规格、型号 | D2: 单位 | E2: 计划数量 | F2: 预估单价（元） | G2: 总价（元） | H2: 备注
A3: 1 | B3: 容量瓶 | C3: 50ml，葵花 | D3: 个 | E3: 4 | F3: 12 | G3: =E3*F3 -> 48
A4: =A3+1 -> 2 | B4: 容量瓶 | C4: 100ml，葵花 | D4: 个 | E4: 20 | F4: 12 | G4: 240
A5: 3 | B5: 容量瓶 | C5: 200ml，葵花 | D5: 个 | E5: 8 | F5: 18 | G5: 144
A6: 4 | B6: 容量瓶 | C6: 250ml，葵花 | D6: 个 | E6: 12 | F6: 15 | G6: 180
A7: 5 | B7: 容量瓶 | C7: 500ml，葵花 | D7: 个 | E7: 12 | F7: 19 | G7: 228
A8: =A7+1 -> 6 | B8: 容量瓶 | C8: 1000ml，葵花 | D8: 个 | E8: 12 | F8: 25 | G8: 300
A9: 7 | B9: 滴瓶 | C9: 100ml，葵花 | D9: 个 | E9: 10 | F9: 50 | G9: 500
A10: =A9+1 -> 8 | B10: 棕色滴瓶 | C10: 100ml，葵花 | D10: 个 | E10: 10 | F10: 50 | G10: 500
A11: 9 | B11: 蓝盖无色玻璃瓶 | C11: 500ml；聚四氟乙烯衬垫瓶盖 | D11: 个 | E11: 12 | F11: 20 | G11: 240
A12: =A11+1 -> 10 | B12: 蓝盖无色玻璃瓶 | C12: 1000ml；聚四氟乙烯衬垫瓶盖 | D12: 个 | E12: 12 | F12: 30 | G12: 360
A13: 11 | B13: 棕色广口试剂瓶 | C13: 250ml，葵花 | D13: 个 | E13: 8 | F13: 10 | G13: 80
A14: =A13+1 -> 12 | B14: 棕色广口玻璃瓶 | C14: 500ml，葵花 | D14: 个 | E14: 8 | F14: 15 | G14: 120
A15: 13 | B15: 棕色广口试剂瓶 | C15: 1L，葵花 | D15: 个 | E15: 8 | F15: 20 | G15: 160
A16: =A15+1 -> 14 | B16: 无色细口试剂瓶 | C16: 250ml，葵花 | D16: 个 | E16: 4 | F16: 20 | G16: 80
A17: 15 | B17: 无色细口试剂瓶 | C17: 500ml，葵花 | D17: 个 | E17: 4 | F17: 25 | G17: 100
A18: =A17+1 -> 16 | B18: 无色细口试剂瓶 | C18: 1000ml，葵花 | D18: 个 | E18: 4 | F18: 30 | G18: 120
A19: 17 | B19: 烧杯 | C19: 100ml，葵花 | D19: 个 | E19: 20 | F19: 20 | G19: 400
A20: 18 | B20: 烧杯 | C20: 250ml，葵花 | D20: 个 | E20: 20 | F20: 10 | G20: 200
A21: 19 | B21: 烧杯 | C21: 500ml，葵花 | D21: 个 | E21: 12 | F21: 6 | G21: 72
A22: =A21+1 -> 20 | B22: 烧杯 | C22: 1L，葵花 | D22: 个 | E22: 12 | F22: 10 | G22: 120
A23: 21 | B23: 烧杯 | C23: 2L，葵花 | D23: 个 | E23: 4 | F23: 25 | G23: 100
A24: =A23+1 -> 22 | B24: 刻度移液管 | C24: 1ml，葵花 | D24: 个 | E24: 14 | F24: 6 | G24: 84
A25: 23 | B25: 刻度移液管 | C25: 2ml，葵花 | D25: 个 | E25: 4 | F25: 6 | G25: 24
A26: =A25+1 -> 24 | B26: 刻度移液管 | C26: 5ml，葵花 | D26: 个 | E26: 22 | F26: 7 | G26: 154
A27: 25 | B27: 刻度移液管 | C27: 10ml，葵花 | D27: 个 | E27: 22 | F27: 7 | G27: 154
A28: =A27+1 -> 26 | B28: 刻度移液管 | C28: 20ml，葵花 | D28: 个 | E28: 8 | F28: 10 | G28: 80
A29: 27 | B29: 无分度移液管 | C29: 1ml，葵花 | D29: 个 | E29: 2 | F29: 10 | G29: 20
A30: 28 | B30: 无分度移液管 | C30: 2ml，葵花 | D30: 个 | E30: 2 | F30: 10 | G30: 20
A31: 29 | B31: 无分度移液管 | C31: 5ml，葵花 | D31: 个 | E31: 10 | F31: 10 | G31: 100
A32: =A31+1 -> 30 | B32: 无分度移液管 | C32: 10ml，葵花 | D32: 个 | E32: 10 | F32: 20 | G32: 200
A33: 31 | B33: 无分度移液管 | C33: 20ml，葵花 | D33: 个 | E33: 4 | F33: 10 | G33: 40
A34: =A33+1 -> 32 | B34: 无分度移液管 | C34: 25ml，葵花 | D34: 个 | E34: 4 | F34: 10 | G34: 40
A35: 33 | B35: 无分度移液管 | C35: 50ml，葵花 | D35: 个 | E35: 4 | F35: 10 | G35: 40
A36: =A35+1 -> 34 | B36: 量筒 | C36: 25ml，葵花 | D36: 个 | E36: 6 | F36: 6 | G36: 36
A37: 35 | B37: 量筒 | C37: 50ml，葵花 | D37: 个 | E37: 6 | F37: 6 | G37: 36
A38: =A37+1 -> 36 | B38: 量筒 | C38: 100ml，葵花 | D38: 个 | E38: 6 | F38: 6 | G38: 36
A39: 37 | B39: 量筒 | C39: 250ml，葵花 | D39: 个 | E39: 6 | F39: 13 | G39: 78
A40: 38 | B40: 量筒 | C40: 500ml，葵花 | D40: 个 | E40: 6 | F40: 15 | G40: 90
A41: 39 | B41: 量筒 | C41: 1L，葵花 | D41: 个 | E41: 12 | F41: 20 | G41: 240
A42: =A41+1 -> 40 | B42: 磨口锥形瓶 | C42: 250ml，葵花 | D42: 个 | E42: 20 | F42: 4 | G42: 80
A43: 41 | B43: 碘量瓶 | C43: 250ml；带玻璃塞，葵花 | D43: 个 | E43: 20 | F43: 10 | G43: 200
A44: 42 | B44: 小玻璃漏斗 | C44: 直径60mm，葵花 | D44: 个 | E44: 20 | F44: 10 | G44: 200
A45: 43 | B45: 小玻璃漏斗 | C45: 直径75mm，葵花 | D45: 个 | E45: 20 | F45: 15 | G45: 300
A46: =A45+1 -> 44 | B46: 盖玻片 | C46: 微生物镜检 | D46: 盒 | E46: 10 | F46: 6 | G46: 60
A47: 45 | B47: 无色酸式滴定管 | C47: 50ml，葵花 | D47: 个 | E47: 8 | F47: 60 | G47: 480
A48: 46 | B48: 具塞磨口比色管 | C48: 25ml，葵花 | D48: 个 | E48: 30 | F48: 10 | G48: 300
A49: 47 | B49: 具塞磨口比色管 | C49: 50ml，葵花 | D49: 个 | E49: 30 | F49: 10 | G49: 300
A50: =A49+1 -> 48 | B50: 试管及配套硅胶塞 | C50: 50ml，葵花 | D50: 个 | E50: 50 | F50: 10 | G50: 500 | H50: 粪大肠菌群
A51: 49 | B51: 试管及配套硅胶塞 | C51: 20ml，葵花 | D51: 个 | E51: 150 | F51: 10 | G51: 1500 | H51: 粪大肠菌群
A52: 48 | B52: 试管架 | C52: 放置50ml试管，与48配套 | D52: 个 | E52: 5 | F52: 30 | G52: 150 | H52: 粪大肠菌群
A53: 49 | B53: 试管架 | C53: 放置20ml试管，与48配套 | D53: 个 | E53: 5 | F53: 30 | G53: 150 | H53: 粪大肠菌群
A54: =A53+1 -> 50 | B54: 杜氏小管 | C54: 6mm*30mm,100个/包 | D54: 包 | E54: 5 | F54: 15 | G54: 75 | H54: 粪大肠菌群
A55: 51 | B55: 接种环 | C55: 直径3mm | D55: 个 | E55: 8 | F55: 15 | G55: 120 | H55: 粪大肠菌群
A56: 52 | B56: 培养皿 | C56: 90mm,塑料 | D56: 个 | E56: 200 | F56: 1 | G56: 200 | H56: 粪大肠菌群
A57: 53 | B57: 微孔滤膜滤膜 | C57: 孔径0.45um | D57: 盒 | E57: 10 | F57: 40 | G57: 400 | H57: 粪大肠菌群
A58: 54 | B58: 比色皿 | C58: 10mm，石英，葵花 | D58: 盒 | E58: 4 | F58: 90 | G58: 360
A59: 55 | B59: 比色皿 | C59: 20mm，石英 | D59: 盒 | E59: 4 | F59: 110 | G59: 440
A60: 56 | B60: 溶解氧瓶 | C60: 250~300ml，带水封装置校准至1ml，具塞温克勒瓶或其他适合的细口瓶，瓶肩最好是直的，每个瓶和盖都要有相同的号码，葵花 | D60: 个 | E60: 20 | F60: 10 | G60: 200
A61: 57 | B61: 称量瓶 | C61: 60mm*30mm | D61: 个 | E61: 20 | F61: 10 | G61: 200
A62: 58 | B62: 防爆玻璃珠 | C62: 直径3~8mm | D62: 包 | E62: 2 | F62: 30 | G62: 60
A63: 59 | B63: 玻璃棒 | C63: 5mm*200mm，葵花 | D63: 个 | E63: 8 | F63: 5 | G63: 40
A64: 60 | B64: 移液枪 | C64: 气密性好；1ml | D64: 个 | E64: 2 | F64: 400 | G64: 800
A65: 61 | B65: 移液枪 | C65: 气密性好；10ml | D65: 个 | E65: 2 | F65: 400 | G65: 800
A66: 62 | B66: 移液枪枪头 | C66: 100ul，1000个/包 | D66: 包 | E66: 1 | F66: 20 | G66: 20
A67: 63 | B67: 移液枪枪头 | C67: 1ml，1000个/包 | D67: 包 | E67: 4 | F67: 25 | G67: =E67*F67 -> 100
A68: 64 | B68: 移液枪枪头 | C68: 10ml，100个/包 | D68: 包 | E68: 6 | F68: 25 | G68: 150
A69: 65 | B69: 取样桶 | C69: 不锈钢，2L | D69: 个 | E69: 4 | F69: 250 | G69: 1000
A70: 66 | B70: 丁腈手套 | C70: M码；100只/盒 | D70: 盒 | E70: 12 | F70: 45 | G70: 540
A71: 67 | B71: 劳保手套 | C71: 加交点，加厚 | D71: 副 | E71: 3 | F71: 15 | G71: 45
A72: 68 | B72: 高温手套 | D72: 副 | E72: 3 | F72: 35 | G72: 105
A73: 69 | B73: 厚橡胶手套 | C73: 加长型，防腐、防酸防碱 | D73: 副 | E73: 4 | F73: 35 | G73: 140
A74: 70 | B74: 活性炭口罩 | C74: / | D74: 盒 | E74: 20 | F74: 40 | G74: 800
A75: 71 | B75: pH试纸 | C75: 1~14 | D75: 个 | E75: 4 | F75: 8 | G75: 32
A76: 72 | B76: 比色管架 | C76: 25ml，有机玻璃，12孔 | D76: 个 | E76: 4 | F76: 10 | G76: 40
A77: 73 | B77: 比色管架 | C77: 50ml，有机玻璃，12孔 | D77: 个 | E77: 4 | F77: 10 | G77: 40
A78: 74 | B78: CN-CA滤膜 | C78: 孔径0.45μm、直径60mm | D78: 盒 | E78: 10 | F78: 50 | G78: 500
A79: 75 | B79: 玻璃纤维滤膜 | C79: 50mm,0.45Um，螺纹 | D79: 盒 | E79: 6 | F79: 40 | G79: 240
A80: 76 | B80: 塑料镊子 | C80: 100*7mm | D80: 个 | E80: 6 | F80: 5 | G80: 30
A81: 77 | B81: 瓷蒸发皿 | C81: 直径90mm | D81: 个 | E81: 12 | F81: 10 | G81: 120
A82: 78 | B82: 一次性聚乙烯采样瓶 | C82: 500ml | D82: 个 | E82: 100 | F82: 5 | G82: 500
A83: 79 | B83: 封口膜 | C83: 10cm*38m | D83: 卷 | E83: 4 | F83: 200 | G83: 800
A84: 80 | B84: 坩埚钳 | C84: 304不锈钢350mm | D84: 个 | E84: 1 | F84: 20 | G84: 20
A85: 81 | B85: 虹吸管 | C85: 长度约1.6m，供分取水样或添加稀释水 | D85: 根 | E85: 2 | F85: 10 | G85: 20
A86: 82 | B86: 营养琼脂平板 | C86: 海博生物，9cm | D86: 个 | E86: 400 | F86: 2 | G86: 800
A87: 83 | B87: 酒精棉球 | D87: 瓶 | E87: 12 | F87: 10 | G87: 120
A88: 84 | B88: 酒精灯 | D88: 个 | E88: 6 | F88: 10 | G88: 60
A89: 85 | B89: 中速定量滤纸 | C89: 直径110mm | D89: 盒 | E89: 4 | F89: 15 | G89: 60
A90: 86 | B90: 中速定性滤纸 | C90: 直径110mm | D90: 盒 | E90: 4 | F90: 15 | G90: 60
A91: 87 | B91: 慢速定量滤纸 | C91: 直径110mm | D91: 盒 | E91: 4 | F91: 15 | G91: 60
A92: 88 | B92: 慢速定性滤纸 | C92: 直径110mm | D92: 盒 | E92: 4 | F92: 15 | G92: 60
A93: 89 | B93: 牛皮纸 | C93: 1000mm*800mm | D93: 张 | E93: 3 | F93: 5 | G93: 15
A94: 90 | B94: 红色滴管胶头 | C94: 滴瓶使用，100个/包 | D94: 包 | E94: 2 | F94: 20 | G94: 40
A95: 91 | B95: 纱布 | C95: 820mm*1000mm | D95: 个 | E95: 2 | F95: 25 | G95: 50
A96: 92 | B96: 棉绳 | C96: 系比色管用 | D96: 卷 | E96: 1 | F96: 6 | G96: 6
A97: 93 | B97: 冰箱温度计 | C97: 零下40℃~50℃ | D97: 个 | E97: 1 | F97: 100 | G97: 100
A98: 94 | B98: 水质总大肠菌群合粪大肠菌群测试纸片 | C98: 10ml水样量纸片 | D98: 张 | E98: 40 | F98: 125 | G98: 5000
A99: 95 | B99: 水质总大肠菌群合粪大肠菌群测试纸片 | C99: 1ml水样量纸片 | D99: 张 | E99: 40 | F99: 125 | G99: 5000
A100: 96 | B100: 自封袋 | C100: 12号 | D100: 个 | E100: 400 | F100: 2 | G100: 800
A101: 97 | B101: 橡皮筋 | D101: 包 | E101: 2 | F101: 8 | G101: 16
A102: 98 | B102: 一次性滴管 | C102: 3ml，1000个/包 | D102: 包 | E102: 2 | F102: 8 | G102: 16
A103: 99 | B103: 无齿扁咀镊 | D103: 个 | E103: 2 | F103: 10 | G103: =E103*F103 -> 20
A104: 100 | B104: 尖头镊子 | C104: 不锈钢,15cm | D104: 个 | E104: 2 | F104: 10 | G104: 20
A105: 101 | B105: 瓷坩埚 | C105: 100ml带盖 | D105: 个 | E105: 8 | F105: 30 | G105: 240
A106: 102 | B106: 瓷坩埚 | C106: 250ml带盖 | D106: 个 | E106: 8 | F106: 60 | G106: 480
A107: 103 | B107: 药匙 | C107: 不锈钢长柄 | D107: 个 | E107: 8 | F107: 5 | G107: 40
A108: 104 | B108: 称量纸 | C108: 100mm*100mm | D108: 包 | E108: 4 | F108: 10 | G108: 40
A109: 105 | B109: 洗耳球 | C109: 大 | D109: 个 | E109: 8 | F109: 4 | G109: 32
A110: 106 | B110: 毛刷 | C110: 大 | D110: 个 | E110: 4 | F110: 5 | G110: 20
A111: 107 | B111: 毛刷 | C111: 中 | D111: 个 | E111: 4 | F111: 5 | G111: 20
A112: 108 | B112: 毛刷 | C112: 小 | D112: 个 | E112: 2 | F112: 5 | G112: 10
A113: 109 | B113: 天平清洁毛刷 | D113: 个 | E113: 2 | F113: 5 | G113: 10
A114: 110 | B114: 洗瓶 | C114: 白色弯头，500ml | D114: 个 | E114: 12 | F114: 4 | G114: 48
A115: 111 | B115: 废液桶 | C115: 25L | D115: 个 | E115: 12 | F115: 50 | G115: 600
A116: 112 | B116: 实验服（白大褂） | C116: XL码 | D116: 个 | E116: 8 | F116: 98 | G116: 784
A117: 113 | B117: 棉签 | D117: 包 | E117: 4 | F117: 2 | G117: 8
A118: 114 | B118: 铁架台（配蝴蝶机夹） | C118: 高度60mm | D118: 个 | E118: 2 | F118: 80 | G118: 160
A119: 115 | B119: 聚四氟搅拌子 | C119: C型 6mm*20mm | D119: 个 | E119: 12 | F119: 3 | G119: 36
A120: 116 | B120: 标签纸 | C120: 63*56mm，100张/包 | D120: 包 | E120: 2 | F120: 10 | G120: 20
A121: 117 | B121: 标签纸 | C121: 48*37mm，100张/包 | D121: 包 | E121: 2 | F121: 10 | G121: 20
A122: 118 | B122: 标签纸 | C122: 定制采样标签、标准溶液标签，100张/包 | D122: 包 | E122: 2 | F122: 35 | G122: 70
A123: 119 | B123: 衣架 | C123: 微生物专用 | D123: 个 | E123: 1 | F123: 80 | G123: 80
A124: 120 | B124: PP材质托盘 | C124: 约35*25cm | D124: 个 | E124: 2 | F124: 50 | G124: 100
A125: 121 | B125: 一次性聚乙烯瓶 | C125: 1000ml | D125: 个 | E125: 100 | F125: 2 | G125: 200
A126: =A125+1 -> 122 | B126: 锥形瓶（不磨口） | C126: 250ml，葵花 | D126: 个 | E126: 10 | F126: 4 | G126: 40
A127: 123 | B127: DO快速测定仪 | D127: 个 | E127: 1 | F127: 800 | G127: 800
A128: =A127+1 -> 124 | B128: 酸式滴定管 | C128: 100ml，葵花 | D128: 个 | E128: 4 | F128: 70 | G128: 280
A129: =A128+1 -> 125 | B129: 一次性聚乙烯瓶 | C129: 250ml | D129: 个 | E129: 100 | F129: 2 | G129: 200
A130: =A129+1 -> 126 | B130: 具塞磨口比色管架 | C130: 25ml，一排12个，亚克力材质 | D130: 个 | E130: 4 | F130: 16 | G130: 64
A131: =A130+1 -> 127 | B131: 具塞磨口比色管架 | C131: 50ml，一排12个，亚克力材质 | D131: 个 | E131: 4 | F131: 18 | G131: 72
A132: 128 | B132: 淀粉-碘化钾试纸 | C132: 国药/三爱思 | D132: 盒 | E132: 4 | F132: 10 | G132: 40
A133: =A132+1 -> 129 | B133: 强酸性阳离子交换树脂(氢型）柱 | C133: 葵花 | D133: 个 | E133: 2 | F133: 250 | G133: 500 | H133: 氨氮前处理用
A134: 130 | B134: 强酸性阳离子交换树脂(氢型） | C134: 沃凯 250g | D134: 个 | E134: 1 | F134: 50 | G134: 50 | H134: 氨氮前处理用
A135: 131 | B135: 全玻璃蒸馏器 | C135: 葵花 | D135: 个 | E135: 1 | F135: 130 | G135: 130 | H135: 氨氮前处理用
A136: 132 | B136: 离子交换柱 | C136: 外径1.4cm，装树脂高5-8cm | D136: 根 | E136: 5 | F136: 50 | G136: 250 | H136: 硝氮前处理用
A137: 133 | B137: TDS水质检测笔 | C137: 爱诗普霖 | D137: 根 | E137: 2 | F137: 298 | G137: 596 | H137: TDS
A138: 134 | B138: 透明护目镜 | C138: 3M，防酸碱 | D138: 个 | E138: 10 | F138: 36 | G138: 360
A139: 135 | B139: 碘量瓶 | C139: 500mL，带玻璃塞，葵花 | D139: 个 | E139: 20 | F139: 25 | G139: 500
A140: 136 | B140: 碘量瓶 | C140: 502mL，带玻璃塞，葵花 | D140: 个 | E140: 20 | F140: 25 | G140: =E140*F140 -> 500
A141: 137 | B141: 铁三环 | C141: 中号,蓝柄 | D141: 个 | E141: 20 | F141: 6 | G141: =E141*F141 -> 120
B142: 合计（元） | G142: =SUM(G3:G141) -> 38744

Sheet 试剂申购计划及预算
A1: 2023年东方水务化验室化学试剂耗材申购清单
A2: 序号 | B2: 使用项目 | C2: 试剂名称 | D2: 规格、型号 | E2: 预计购入量 | F2: 预估单价（元） | G2: 总价（元） | H2: 备注
A3: 1 | B3: COD | C3: 硫酸汞 | D3: 250g | E3: 1 | F3: 162 | G3: =E3*F3 -> 162
A4: =A3+1 -> 2 | B4: COD | C4: 硫酸银 | D4: 100g | E4: 2 | F4: 520 | G4: 1040
A5: =A4+1 -> 3 | B5: COD | C5: 重铬酸钾溶液 | D5: 500ml，0.250mol/L | E5: 2 | F5: 180 | G5: 360
A6: =A5+1 -> 4 | B6: COD | C6: 硫酸亚铁铵（六水） | D6: 500g | E6: 1 | F6: 20 | G6: 20
A7: =A6+1 -> 5 | B7: COD | C7: 硫酸 | D7: 500mL,优级纯 | E7: 48 | F7: 25 | G7: 1200 | H7: 易制毒
A8: =A7+1 -> 6 | B8: COD | C8: 邻菲啰啉 | D8: 5g | E8: 1 | F8: 126 | G8: 126
A9: =A8+1 -> 7 | B9: COD | C9: 硫酸亚铁（七水） | D9: 500g | E9: 1 | F9: 16 | G9: 16
A10: 8 | B10: COD | C10: 邻苯二甲酸氢钾 | D10: 500g | E10: 1 | F10: 40 | G10: 40
A11: 9 | B11: COD | C11: COD标准物质 | D11: 120mg/L左右，20mL | E11: 12 | F11: 60 | G11: =E11*F12 -> 720
A12: 10 | B12: COD | C12: COD标准物质 | D12: <50mg/L，20mL | E12: 12 | F12: 60 | G12: =E12*F13 -> 720
A13: 11 | B13: COD | C13: COD标准物质 | D13: 200mg/L左右，20mL | E13: 12 | F13: 60 | G13: =E13*F13 -> 720
A14: 12 | B14: TN | C14: 氢氧化钠 | D14: 500g，含氮量＜0.0005% | E14: 1 | F14: 23 | G14: 23
A15: 13 | B15: TN | C15: 过硫酸钾 | D15: 德国默克，250g | E15: 4 | F15: 484 | G15: 1936
A16: 14 | B16: TN | C16: 盐酸 | D16: 500ml，优级纯 | E16: 4 | F16: 25 | G16: 100 | H16: 易制爆
A17: 15 | B17: TN | C17: 总氮标准物质 | D17: 100mg/L，50mL | E17: 4 | F17: 150 | G17: 600
A18: 16 | B18: TN | C18: 总氮标准物质 | D18: 10mg/L左右，20mL | E18: 12 | F18: 70 | G18: 840
A19: 17 | B19: TN | C19: 总氮标准物质 | D19: 5mg/L左右，20mL | E19: 12 | F19: 70 | G19: 840
A20: 18 | B20: TN | C20: 总氮标准物质 | D20: 小于1mg/L左右，20mL | E20: 12 | F20: 70 | G20: 840
A21: 19 | B21: NH3-N | C21: 钠氏试剂 | D21: 100mL | E21: 4 | F21: 82 | G21: =E21*F21 -> 328
A22: =A21+1 -> 20 | B22: NH3-N | C22: 酒石酸钾钠 | D22: 500g | E22: 5 | F22: 26 | G22: 130
A23: 21 | B23: NH3-N | C23: 硫代硫酸钠(五水） | D23: 麦克林，100g | E23: 4 | F23: 141 | G23: 564
A24: 22 | B24: NH3-N | C24: 淀粉 | D24: 500g | E24: 1 | F24: 29 | G24: 29
A25: 23 | B25: NH3-N | C25: 碘化钾 | D25: 500g | E25: 1 | F25: 410 | G25: 410
A26: 24 | B26: NH3-N | C26: 碳酸钠 | D26: 500g | E26: 1 | F26: 15 | G26: 15
A27: 25 | B27: NH3-N | C27: 硫酸锌（7水） | D27: 500g，沪试 | E27: 1 | F27: 28 | G27: 28
A28: 26 | B28: NH3-N | C28: 硼酸 | D28: 500g | E28: 1 | F28: 30 | G28: 30
A29: 27 | B29: NH3-N | C29: 溴百里酚蓝 | D29: 10g，沪试 | E29: 1 | F29: 69 | G29: 69
A30: 28 | B30: NH3-N | C30: 无水乙醇 | D30: 500ml | E30: 5 | F30: 14 | G30: 70
A31: 29 | B31: NH3-N | C31: 氨氮标准液 | D31: 1000mg/L，50mL | E31: 2 | F31: 150 | G31: 300
A32: 30 | B32: NH3-N | C32: 氨氮标准物质 | D32: 20mg/L左右，20mL | E32: 4 | F32: 70 | G32: 280
A33: 31 | B33: NH3-N | C33: 氨氮标准物质 | D33: 1mg/L左右，20mL | E33: 8 | F33: 70 | G33: 560
A34: 32 | B34: TP | C34: 抗坏血酸 | D34: 250g | E34: 2 | F34: 39 | G34: 78
A35: 33 | B35: TP | C35: 钼酸铵 | D35: 500g | E35: 1 | F35: 192 | G35: 192
A36: 34 | B36: TP | C36: 酒石酸锑钾 | D36: 500g | E36: 1 | F36: 150 | G36: 150
A37: =A36+1 -> 35 | B37: TP | C37: 总磷标准液 | D37: 50mg/L，50mL | E37: 2 | F37: 150 | G37: 300
A38: 36 | B38: TP | C38: 总磷标准物质 | D38: 2mg/L左右,20mL | E38: 6 | F38: 70 | G38: 420
A39: 37 | B39: TP | C39: 总磷标准物质 | D39: 0.5mg/L左右,20mL | E39: 6 | F39: 70 | G39: 420
A40: 38 | B40: DO | C40: 硫酸锰（无水或一水） | D40: 500g | E40: 1 | F40: 140 | G40: 140
A41: 39 | B41: DO | C41: 碘酸钾 | D41: 优级纯，500g | E41: 2 | F41: 490 | G41: 980
A42: 40 | B42: BOD | C42: 丙烯基硫脲 | D42: 25g | E42: 2 | F42: 80 | G42: 160
A43: 41 | B43: BOD | C43: 菌种 | D43: 连华BOD5仪器配套使用 | E43: 5 | F43: 30 | G43: 150
A44: 42 | B44: BOD | C44: BOD耗材套包 | D44: 连华BOD5仪器配套使用 | E44: 5 | F44: 380 | G44: 1900
A45: 43 | B45: 氯化物 | C45: 氯化钠标准溶液 | D45: 0.0141mol/L | E45: 2 | F45: 80 | G45: =E45*F45 -> 160
A46: 44 | B46: 氯化物 | C46: 硝酸银标准溶液 | D46: 0.0141mol/L | E46: 4 | F46: 220 | G46: 880
A47: 45 | B47: 氯化物 | C47: 铬酸钾 | D47: 500g | E47: 1 | F47: 50 | G47: 50
A48: 46 | B48: 硝酸盐氮 | C48: 硫酸铝 | D48: 500g | E48: 1 | F48: 30 | G48: 30
A49: 47 | B49: 硝酸盐氮 | C49: 氨基磺酸 | D49: 100g | E49: 1 | F49: 15 | G49: 15
A50: 48 | B50: 硝酸盐氮 | C50: 硝酸盐氮标准液 | D50: 1000mg/L,50mL | E50: 2 | F50: 150 | G50: 300
A51: 49 | B51: 硝酸盐氮 | C51: 硝酸盐氮标准样 | D51: 10mg/L左右，20mL | E51: 12 | F51: 50 | G51: 600
A52: 50 | B52: 次氯酸钠 | C52: 硫代硫酸钠标准溶液 | D52: 0.1mol/L | E52: 5 | F52: 100 | G52: 500
A53: 51 | B53: 聚氯化铝 | C53: 硝酸 | D53: 500ml，AR | E53: 2 | F53: 35 | G53: 70 | H53: 易制毒
A54: 52 | B54: 聚氯化铝 | C54: EDTA溶液 | D54: 500ml，0.05mol/L | E54: 2 | F54: 68 | G54: 136
A55: 53 | B55: 聚氯化铝 | C55: 乙酸钠 | D55: 500g | E55: 2 | F55: 26 | G55: 52
A56: 54 | B56: 聚氯化铝 | C56: 冰乙酸 | D56: 500ml | E56: 1 | F56: 24 | G56: 24
A57: 55 | B57: 聚氯化铝 | C57: 氧化铝标准溶液 | D57: 1g/L，500ml | E57: 4 | F57: 76 | G57: 304
A58: 56 | B58: 聚氯化铝 | C58: 氯化锌标准滴定溶液 | D58: 0.025mol/L，500ml | E58: 4 | F58: 85 | G58: 340
A59: 57 | B59: 聚氯化铝 | C59: 百里香酚蓝 | D59: 25g | E59: 1 | F59: 118 | G59: 118
A60: 58 | B60: 聚氯化铝 | C60: 二甲酚橙 | D60: 25g | E60: 1 | F60: 46 | G60: 46
A61: 59 | B61: 悬浮物 | C61: 变色硅胶 | D61: 500g | E61: 2 | F61: 20 | G61: 40
A62: 60 | B62: 粪大肠菌群 | C62: EC培养基 | D62: 250g | E62: 5 | F62: 120 | G62: 600
A63: 61 | B63: 粪大肠菌群 | C63: 乳糖蛋白胨培养基 | D63: 250g | E63: 5 | F63: 150 | G63: 750
A64: 62 | B64: 粪大肠菌群 | C64: 营养琼脂培养基 | D64: 250g | E64: 5 | F64: 120 | G64: 600
A65: 63 | B65: 粪大肠菌群 | C65: M-FC培养基 | D65: 250g | E65: 5 | F65: 120 | G65: 600
A66: 64 | B66: pH | C66: pH标准溶液 | D66: 4.00 | E66: 4 | F66: 120 | G66: 480
A67: 65 | B67: pH | C67: pH标准溶液 | D67: 6.86 | E67: 4 | F67: 120 | G67: 480
A68: 66 | B68: pH | C68: pH标准溶液 | D68: 9.18 | E68: 4 | F68: 120 | G68: 480
A69: 67 | B69: pH | C69: pH电极保护液 | D69: 250ml | E69: 2 | F69: 120 | G69: =E69*F69 -> 240
A70: 68 | B70: ORP | C70: ORP标准溶液 | D70: 220mV；上海三信仪表厂 | E70: 4 | F70: 120 | G70: =E70*F70 -> 480
A71: 69 | B71: pH | C71: KCl | D71: 500g | E71: 2 | F71: 15 | G71: =E71*F71 -> 30
A72: 70 | B72: pH | C72: pH电极保护液 | D72: 250ml | E72: 2 | F72: 120 | G72: =E72*F72 -> 240
A73: 71 | B73: 容量瓶 | C73: 50ml，葵花 | D73: 个 | E73: 4 | F73: 12 | G73: =E73*F73 -> 48
A74: 72 | B74: 容量瓶 | C74: 100ml，葵花 | D74: 个 | E74: 20 | F74: 12 | G74: 240
A75: 73 | B75: 容量瓶 | C75: 200ml，葵花 | D75: 个 | E75: 8 | F75: 18 | G75: 144
A76: 74 | B76: 容量瓶 | C76: 250ml，葵花 | D76: 个 | E76: 12 | F76: 15 | G76: 180
A77: 75 | B77: 容量瓶 | C77: 500ml，葵花 | D77: 个 | E77: 12 | F77: 19 | G77: 228
A78: 76 | B78: 容量瓶 | C78: 1000ml，葵花 | D78: 个 | E78: 12 | F78: 25 | G78: 300
A79: 77 | B79: 滴瓶 | C79: 100ml，葵花 | D79: 个 | E79: 10 | F79: 50 | G79: 500
A80: 78 | B80: 棕色滴瓶 | C80: 100ml，葵花 | D80: 个 | E80: 10 | F80: 50 | G80: 500
A81: 79 | B81: 蓝盖无色玻璃瓶 | C81: 500ml；聚四氟乙烯衬垫瓶盖 | D81: 个 | E81: 12 | F81: 20 | G81: 240
A82: 80 | B82: 蓝盖无色玻璃瓶 | C82: 1000ml；聚四氟乙烯衬垫瓶盖 | D82: 个 | E82: 12 | F82: 30 | G82: 360
A83: 81 | B83: 棕色广口试剂瓶 | C83: 250ml，葵花 | D83: 个 | E83: 8 | F83: 10 | G83: 80
A84: 82 | B84: 棕色广口玻璃瓶 | C84: 500ml，葵花 | D84: 个 | E84: 8 | F84: 15 | G84: 120
A85: 83 | B85: 棕色广口试剂瓶 | C85: 1L，葵花 | D85: 个 | E85: 8 | F85: 20 | G85: 160
A86: 84 | B86: 无色细口试剂瓶 | C86: 250ml，葵花 | D86: 个 | E86: 4 | F86: 20 | G86: 80
A87: 85 | B87: 无色细口试剂瓶 | C87: 500ml，葵花 | D87: 个 | E87: 4 | F87: 25 | G87: 100
A88: 86 | B88: 无色细口试剂瓶 | C88: 1000ml，葵花 | D88: 个 | E88: 4 | F88: 30 | G88: 120
A89: 87 | B89: 烧杯 | C89: 100ml，葵花 | D89: 个 | E89: 20 | F89: 20 | G89: 400
A90: 88 | B90: 烧杯 | C90: 250ml，葵花 | D90: 个 | E90: 20 | F90: 10 | G90: 200
A91: 89 | B91: 烧杯 | C91: 500ml，葵花 | D91: 个 | E91: 12 | F91: 6 | G91: 72
A92: 90 | B92: 烧杯 | C92: 1L，葵花 | D92: 个 | E92: 12 | F92: 10 | G92: 120
A93: 91 | B93: 烧杯 | C93: 2L，葵花 | D93: 个 | E93: 4 | F93: 25 | G93: 100
A94: 92 | B94: 刻度移液管 | C94: 1ml，葵花 | D94: 个 | E94: 14 | F94: 6 | G94: 84
A95: 93 | B95: 刻度移液管 | C95: 2ml，葵花 | D95: 个 | E95: 4 | F95: 6 | G95: 24
A96: 94 | B96: 刻度移液管 | C96: 5ml，葵花 | D96: 个 | E96: 22 | F96: 7 | G96: 154
A97: 95 | B97: 刻度移液管 | C97: 10ml，葵花 | D97: 个 | E97: 22 | F97: 7 | G97: 154
A98: 96 | B98: 刻度移液管 | C98: 20ml，葵花 | D98: 个 | E98: 8 | F98: 10 | G98: 80
A99: 97 | B99: 无分度移液管 | C99: 1ml，葵花 | D99: 个 | E99: 2 | F99: 10 | G99: 20
A100: 98 | B100: 无分度移液管 | C100: 2ml，葵花 | D100: 个 | E100: 2 | F100: 10 | G100: 20
A101: =A100+1 -> 99 | B101: 无分度移液管 | C101: 5ml，葵花 | D101: 个 | E101: 10 | F101: 10 | G101: 100
A102: 100 | B102: 无分度移液管 | C102: 10ml，葵花 | D102: 个 | E102: 10 | F102: 20 | G102: 200
A103: 101 | B103: 无分度移液管 | C103: 20ml，葵花 | D103: 个 | E103: 4 | F103: 10 | G103: 40
A104: 102 | B104: 无分度移液管 | C104: 25ml，葵花 | D104: 个 | E104: 4 | F104: 10 | G104: 40
A105: 103 | B105: 无分度移液管 | C105: 50ml，葵花 | D105: 个 | E105: 4 | F105: 10 | G105: 40
A106: 104 | B106: 量筒 | C106: 25ml，葵花 | D106: 个 | E106: 6 | F106: 6 | G106: 36
A107: 105 | B107: 量筒 | C107: 50ml，葵花 | D107: 个 | E107: 6 | F107: 6 | G107: 36
A108: 106 | B108: 量筒 | C108: 100ml，葵花 | D108: 个 | E108: 6 | F108: 6 | G108: 36
A109: 107 | B109: 量筒 | C109: 250ml，葵花 | D109: 个 | E109: 6 | F109: 13 | G109: 78
A110: 108 | B110: 量筒 | C110: 500ml，葵花 | D110: 个 | E110: 6 | F110: 15 | G110: 90
A111: 109 | B111: 量筒 | C111: 1L，葵花 | D111: 个 | E111: 12 | F111: 20 | G111: 240
A112: 110 | B112: 磨口锥形瓶 | C112: 250ml，葵花 | D112: 个 | E112: 20 | F112: 4 | G112: 80
A113: 111 | B113: 碘量瓶 | C113: 250ml；带玻璃塞，葵花 | D113: 个 | E113: 20 | F113: 10 | G113: 200
A114: 112 | B114: 小玻璃漏斗 | C114: 直径60mm，葵花 | D114: 个 | E114: 20 | F114: 10 | G114: 200
A115: 113 | B115: 小玻璃漏斗 | C115: 直径75mm，葵花 | D115: 个 | E115: 20 | F115: 15 | G115: 300
A116: 114 | B116: 盖玻片 | C116: 微生物镜检 | D116: 盒 | E116: 10 | F116: 6 | G116: 60
A117: 115 | B117: 无色酸式滴定管 | C117: 50ml，葵花 | D117: 个 | E117: 8 | F117: 60 | G117: 480
A118: 116 | B118: 具塞磨口比色管 | C118: 25ml，葵花 | D118: 个 | E118: 30 | F118: 10 | G118: 300
A119: 117 | B119: 具塞磨口比色管 | C119: 50ml，葵花 | D119: 个 | E119: 30 | F119: 10 | G119: 300
A120: 118 | B120: 试管及配套硅胶塞 | C120: 50ml，葵花 | D120: 个 | E120: 50 | F120: 10 | G120: 500 | H120: 粪大肠菌群
A121: 119 | B121: 试管及配套硅胶塞 | C121: 20ml，葵花 | D121: 个 | E121: 150 | F121: 10 | G121: 1500 | H121: 粪大肠菌群
A122: 120 | B122: 试管架 | C122: 放置50ml试管，与48配套 | D122: 个 | E122: 5 | F122: 30 | G122: 150 | H122: 粪大肠菌群
A123: 121 | B123: 试管架 | C123: 放置20ml试管，与48配套 | D123: 个 | E123: 5 | F123: 30 | G123: 150 | H123: 粪大肠菌群
A124: 122 | B124: 杜氏小管 | C124: 6mm*30mm,100个/包 | D124: 包 | E124: 5 | F124: 15 | G124: 75 | H124: 粪大肠菌群
A125: 123 | B125: 接种环 | C125: 直径3mm | D125: 个 | E125: 8 | F125: 15 | G125: 120 | H125: 粪大肠菌群
A126: 124 | B126: 培养皿 | C126: 90mm,塑料 | D126: 个 | E126: 200 | F126: 1 | G126: 200 | H126: 粪大肠菌群
A127: 125 | B127: 微孔滤膜滤膜 | C127: 孔径0.45um | D127: 盒 | E127: 10 | F127: 40 | G127: 400 | H127: 粪大肠菌群
A128: 126 | B128: 比色皿 | C128: 10mm，石英，葵花 | D128: 盒 | E128: 4 | F128: 90 | G128: 360
A129: 127 | B129: 比色皿 | C129: 20mm，石英 | D129: 盒 | E129: 4 | F129: 110 | G129: 440
A130: 128 | B130: 溶解氧瓶 | C130: 250~300ml，带水封装置校准至1ml，具塞温克勒瓶或其他适合的细口瓶，瓶肩最好是直的，每个瓶和盖都要有相同的号码，葵花 | D130: 个 | E130: 20 | F130: 10 | G130: 200
A131: 129 | B131: 称量瓶 | C131: 60mm*30mm | D131: 个 | E131: 20 | F131: 10 | G131: 200
A132: 130 | B132: 防爆玻璃珠 | C132: 直径3~8mm | D132: 包 | E132: 2 | F132: 30 | G132: 60
A133: 131 | B133: 玻璃棒 | C133: 5mm*200mm，葵花 | D133: 个 | E133: 8 | F133: 5 | G133: 40
A134: 132 | B134: 移液枪 | C134: 气密性好；1ml | D134: 个 | E134: 2 | F134: 400 | G134: 800
A135: 133 | B135: 移液枪 | C135: 气密性好；10ml | D135: 个 | E135: 2 | F135: 400 | G135: 800
A136: 134 | B136: 移液枪枪头 | C136: 100ul，1000个/包 | D136: 包 | E136: 1 | F136: 20 | G136: 20
A137: 135 | B137: 移液枪枪头 | C137: 1ml，1000个/包 | D137: 包 | E137: 4 | F137: 25 | G137: =E137*F137 -> 100
A138: 136 | B138: 移液枪枪头 | C138: 10ml，100个/包 | D138: 包 | E138: 6 | F138: 25 | G138: 150
A139: 137 | B139: 取样桶 | C139: 不锈钢，2L | D139: 个 | E139: 4 | F139: 250 | G139: 1000
A140: 138 | B140: 丁腈手套 | C140: M码；100只/盒 | D140: 盒 | E140: 12 | F140: 45 | G140: 540
A141: 139 | B141: 劳保手套 | C141: 加交点，加厚 | D141: 副 | E141: 3 | F141: 15 | G141: 45
A142: 140 | B142: 高温手套 | D142: 副 | E142: 3 | F142: 35 | G142: 105
A143: 141 | B143: 厚橡胶手套 | C143: 加长型，防腐、防酸防碱 | D143: 副 | E143: 4 | F143: 35 | G143: 140
A144: 142 | B144: 活性炭口罩 | C144: / | D144: 盒 | E144: 20 | F144: 40 | G144: 800
A145: 143 | B145: pH试纸 | C145: 1~14 | D145: 个 | E145: 4 | F145: 8 | G145: 32
A146: 144 | B146: 比色管架 | C146: 25ml，有机玻璃，12孔 | D146: 个 | E146: 4 | F146: 10 | G146: 40
A147: 145 | B147: 比色管架 | C147: 50ml，有机玻璃，12孔 | D147: 个 | E147: 4 | F147: 10 | G147: 40
A148: 146 | B148: CN-CA滤膜 | C148: 孔径0.45μm、直径60mm | D148: 盒 | E148: 10 | F148: 50 | G148: 500
A149: 147 | B149: 玻璃纤维滤膜 | C149: 50mm,0.45Um，螺纹 | D149: 盒 | E149: 6 | F149: 40 | G149: 240
A150: 148 | B150: 塑料镊子 | C150: 100*7mm | D150: 个 | E150: 6 | F150: 5 | G150: 30
A151: 149 | B151: 瓷蒸发皿 | C151: 直径90mm | D151: 个 | E151: 12 | F151: 10 | G151: 120
A152: 150 | B152: 一次性聚乙烯采样瓶 | C152: 500ml | D152: 个 | E152: 100 | F152: 5 | G152: 500
A153: 151 | B153: 封口膜 | C153: 10cm*38m | D153: 卷 | E153: 4 | F153: 200 | G153: 800
A154: 152 | B154: 坩埚钳 | C154: 304不锈钢350mm | D154: 个 | E154: 1 | F154: 20 | G154: 20
A155: 153 | B155: 虹吸管 | C155: 长度约1.6m，供分取水样或添加稀释水 | D155: 根 | E155: 2 | F155: 10 | G155: 20
A156: 154 | B156: 营养琼脂平板 | C156: 海博生物，9cm | D156: 个 | E156: 400 | F156: 2 | G156: 800
A157: 155 | B157: 酒精棉球 | D157: 瓶 | E157: 12 | F157: 10 | G157: 120
A158: 156 | B158: 酒精灯 | D158: 个 | E158: 6 | F158: 10 | G158: 60
A159: 157 | B159: 中速定量滤纸 | C159: 直径110mm | D159: 盒 | E159: 4 | F159: 15 | G159: 60
A160: 158 | B160: 中速定性滤纸 | C160: 直径110mm | D160: 盒 | E160: 4 | F160: 15 | G160: 60
A161: 159 | B161: 慢速定量滤纸 | C161: 直径110mm | D161: 盒 | E161: 4 | F161: 15 | G161: 60
A162: 160 | B162: 慢速定性滤纸 | C162: 直径110mm | D162: 盒 | E162: 4 | F162: 15 | G162: 60
A163: 161 | B163: 牛皮纸 | C163: 1000mm*800mm | D163: 张 | E163: 3 | F163: 5 | G163: 15
A164: 162 | B164: 红色滴管胶头 | C164: 滴瓶使用，100个/包 | D164: 包 | E164: 2 | F164: 20 | G164: 40
A165: =A164+1 -> 163 | B165: 纱布 | C165: 820mm*1000mm | D165: 个 | E165: 2 | F165: 25 | G165: 50
A166: 164 | B166: 棉绳 | C166: 系比色管用 | D166: 卷 | E166: 1 | F166: 6 | G166: 6
A167: 165 | B167: 冰箱温度计 | C167: 零下40℃~50℃ | D167: 个 | E167: 1 | F167: 100 | G167: 100
A168: 166 | B168: 水质总大肠菌群合粪大肠菌群测试纸片 | C168: 10ml水样量纸片 | D168: 张 | E168: 40 | F168: 125 | G168: 5000
A169: 167 | B169: 水质总大肠菌群合粪大肠菌群测试纸片 | C169: 1ml水样量纸片 | D169: 张 | E169: 40 | F169: 125 | G169: 5000
A170: 168 | B170: 自封袋 | C170: 12号 | D170: 个 | E170: 400 | F170: 2 | G170: 800
A171: 169 | B171: 橡皮筋 | D171: 包 | E171: 2 | F171: 8 | G171: 16
A172: 170 | B172: 一次性滴管 | C172: 3ml，1000个/包 | D172: 包 | E172: 2 | F172: 8 | G172: 16
A173: 171 | B173: 无齿扁咀镊 | D173: 个 | E173: 2 | F173: 10 | G173: 20
A174: 172 | B174: 尖头镊子 | C174: 不锈钢,15cm | D174: 个 | E174: 2 | F174: 10 | G174: 20
A175: 173 | B175: 瓷坩埚 | C175: 100ml带盖 | D175: 个 | E175: 8 | F175: 30 | G175: 240
A176: 174 | B176: 瓷坩埚 | C176: 250ml带盖 | D176: 个 | E176: 8 | F176: 60 | G176: 480
A177: 175 | B177: 药匙 | C177: 不锈钢长柄 | D177: 个 | E177: 8 | F177: 5 | G177: 40
A178: 176 | B178: 称量纸 | C178: 100mm*100mm | D178: 包 | E178: 4 | F178: 10 | G178: 40
A179: 177 | B179: 洗耳球 | C179: 大 | D179: 个 | E179: 8 | F179: 4 | G179: 32
A180: 178 | B180: 毛刷 | C180: 大 | D180: 个 | E180: 4 | F180: 5 | G180: 20
A181: 179 | B181: 毛刷 | C181: 中 | D181: 个 | E181: 4 | F181: 5 | G181: 20
A182: 180 | B182: 毛刷 | C182: 小 | D182: 个 | E182: 2 | F182: 5 | G182: 10
A183: 181 | B183: 天平清洁毛刷 | D183: 个 | E183: 2 | F183: 5 | G183: 10
A184: 182 | B184: 洗瓶 | C184: 白色弯头，500ml | D184: 个 | E184: 12 | F184: 4 | G184: 48
A185: 183 | B185: 废液桶 | C185: 25L | D185: 个 | E185: 12 | F185: 50 | G185: 600
A186: 184 | B186: 实验服（白大褂） | C186: XL码 | D186: 个 | E186: 8 | F186: 98 | G186: 784
A187: 185 | B187: 棉签 | D187: 包 | E187: 4 | F187: 2 | G187: 8
A188: 186 | B188: 铁架台（配蝴蝶机夹） | C188: 高度60mm | D188: 个 | E188: 2 | F188: 80 | G188: 160
A189: 187 | B189: 聚四氟搅拌子 | C189: C型 6mm*20mm | D189: 个 | E189: 12 | F189: 3 | G189: 36
A190: 188 | B190: 标签纸 | C190: 63*56mm，100张/包 | D190: 包 | E190: 2 | F190: 10 | G190: 20
A191: 189 | B191: 标签纸 | C191: 48*37mm，100张/包 | D191: 包 | E191: 2 | F191: 10 | G191: 20
A192: 190 | B192: 标签纸 | C192: 定制采样标签、标准溶液标签，100张/包 | D192: 包 | E192: 2 | F192: 35 | G192: 70
A193: 191 | B193: 衣架 | C193: 微生物专用 | D193: 个 | E193: 1 | F193: 80 | G193: 80
A194: 192 | B194: PP材质托盘 | C194: 约35*25cm | D194: 个 | E194: 2 | F194: 50 | G194: 100
A195: 193 | B195: 一次性聚乙烯瓶 | C195: 1000ml | D195: 个 | E195: 100 | F195: 2 | G195: 200
A196: 194 | B196: 锥形瓶（不磨口） | C196: 250ml，葵花 | D196: 个 | E196: 10 | F196: 4 | G196: 40
A197: 195 | B197: DO快速测定仪 | D197: 个 | E197: 1 | F197: 800 | G197: 800
A198: 196 | B198: 酸式滴定管 | C198: 100ml，葵花 | D198: 个 | E198: 4 | F198: 70 | G198: 280
A199: 197 | B199: 一次性聚乙烯瓶 | C199: 250ml | D199: 个 | E199: 100 | F199: 2 | G199: 200
A200: 198 | B200: 具塞磨口比色管架 | C200: 25ml，一排12个，亚克力材质 | D200: 个 | E200: 4 | F200: 16 | G200: 64
... 11 more rows

Sheet 化验室设备仪器校准计划及预算
A1: 2023年化验室设备仪器校准计划及费用
A2: 序号 | B2: 仪器名称 | C2: 校准单价（元） | D2: 数量（台） | E2: 费用合计（元）
A3: 1 | B3: 电子天平 | C3: 120 | D3: 1 | E3: =C3*D3 -> 120
A4: =A3+1 -> 2 | B4: 哈希分光光度计 | C4: 240 | D4: 1 | E4: 240
A5: =A4+1 -> 3 | B5: 箱式电阻炉 | C5: 275 | D5: 1 | E5: 275
A6: =A5+1 -> 4 | B6: pH计 | C6: 140 | D6: 1 | E6: 140
A7: =A6+1 -> 5 | B7: 生化培养箱 | C7: 175 | D7: 1 | E7: 175
A8: 6 | B8: 电热鼓风干燥器 | C8: 170 | D8: 1 | E8: 170
A9: =A8+1 -> 7 | B9: 显微镜 | C9: 90 | D9: 1 | E9: 90
A10: =A9+1 -> 8 | B10: COD消解仪 | C10: 225 | D10: 1 | E10: 225
A11: =A10+1 -> 9 | B11: 硫化氢气体检测仪 | C11: 240 | D11: 5 | E11: =C11*D11 -> 1200
A12: 10 | B12: 氨气仪表 | C12: 300 | D12: 2 | E12: 600
A13: 11 | B13: 四合一气体检测仪 | C13: 600 | D13: 1 | E13: 600
A14: 12 | B14: 多种气体检测仪 | C14: 300 | D14: 2 | E14: 600
A15: 13 | B15: 压力蒸汽灭菌锅 | C15: 200 | D15: 3 | E15: 600
A16: 14 | B16: 恒温培养箱 | C16: 170 | D16: 1 | E16: 170
A17: =A16+1 -> 15 | B17: 隔水式培养箱 | C17: 170 | D17: 1 | E17: 170
A18: 16 | B18: 无菌操作台 | C18: 400 | D18: 1 | E18: 400
A19: =A18+1 -> 17 | B19: 便携式溶氧仪 | C19: 225 | D19: 1 | E19: 225
A20: 合计（元） | E20: =SUM(E3:E19) -> 6000
